Workbook

Sheet Index
A1: Index
A3: Table 1 - Summary of Demand Tariffs
A4: ='T2'!A1 -> Table 2 - Demand Tariffs
A5: ='T3 & Fig 1'!A1&" "&"&"&" "&'T3 & Fig 1'!G1 -> Table 3 - Gross HH Demand Tariffs & Figure 1 - Gross HH Demand Tariffs
A6: ='T4 & Fig 2'!A1&" "&"&"&" "&'T4 & Fig 2'!H1 -> Table 4 - Embedded Export Tariff & Figure 2 - Embedded Export Tariff
A7: ='T5 & Fig 3'!A1&" "&"&"&" "&'T5 & Fig 3'!G1 -> Table 5 - NHH Demand Tariff Changes & Figure 3 - NHH Demand Tariff Changes
A8: Table 6 - Changes to Average Tariffs
A9: ='T7'!A1 -> Table 7 - Generation Wider Tariffs
A10: ='T8 & Fig 4'!A1&" "&"&"&" "&'T8 & Fig 4'!N1 -> Table 8 - Generation Tariff Changes & Figure 4 - Variation in Generation Zonal Tariffs
A11: ='T9'!A1:E1 -> Table 9 - Local Substation Tariffs
A12: ='T10'!A1:F1 -> Table 10 - Local Circuit Tariffs
A13: ='T11'!A1:E1 -> Table 11 - CMP203: Circuits subject to one-off charges
A14: ='T12'!A1:D1 -> Table 12 - Offshore Local Tariffs
A15: ='T13'!A1:E1 -> Table 13 - Contracted and Modelled TEC
A16: ='T14'!A1 -> Table 14 - Interconnectors
A17: ='T15'!A1 -> Table 15 - Allowed Revenues
A18: ='T16'!A1:F1 -> Table 16 - Generation and Demand Revenue Proportions
A19: Table 17 - Charging Bases
A20: ='T18'!A1:F1 -> Table 18 - Residual Calculation
A21: Table 19 - Small Generator Discount
A22: Table 20 - Summary of CUSC Modifications affecting 2018/19 TNUoS Tariffs
A23: Table 21 - Demand Locational Tariffs
A24: Table 22 - Demand Profiles
A25: Table 23 & Table 24 - Annual Load Factors and Generic Annual Load Factors
A26: Table 25 - Generation TEC Changes
A27: Table 26 - Indicative National Grid Revenue Forecast
A28: Table 27 - Offshore Revenues

Sheet T1
A1: Table 1 - Summary of Demand Tariffs | E1: Return to Index
B3: HH Tariffs | C3: 2018/19 - October | D3: 2018/19 - Draft | E3: Change
B4: Average Tariff (£/kW) | C4: 45.81443 | D4: 46.16732307 | E4: =D4-C4 -> 0.352893074
B5: Residual (£/kW) | C5: 46.90029 | D5: 46.93783997 | E5: =D5-C5 -> 0.03754996761
B6: EET | C6: 2018/19 - October | D6: 2018/19 - Draft | E6: Change
B7: Average Tariff (£/kW) | C7: 25.3352 | D7: 26.90657855 | E7: 1.551375262
B8: Phased residual (£/kW) | C8: 29.36 | D8: 29.36 | E8: 0
B9: AGIC (£/kW) | C9: 3.22 | D9: 3.22 | E9: 0
B10: Embedded Export Volume (GW) | C10: 6.515802595 | D10: 6.515802595 | E10: 0
B11: Total Credit (£m) | C11: 165.2094994 | D11: 175.3179543 | E11: 10.10845496
B12: NHH Tariffs | C12: 2018/19 - October | D12: 2018/19 - Draft | E12: Change
B13: Average (p/kWh) | C13: 6.160776079 | D13: 6.210565799 | E13: 0.04978971974

Sheet T2
A1: Table 2 - Demand Tariffs | E1: Return to Index
A3: Zone | B3: Zone Name | C3: Gross HH Demand Tariff (£/kW) | D3: NHH Demand Tariff (p/kWh) | E3: Embedded Export Tariff (£/kW)
A4: 1 | B4: Northern Scotland | C4: 26.298678 | D4: 3.508445 | E4: 11.347693
A5: 2 | B5: Southern Scotland | C5: 29.058761 | D5: 3.916767 | E5: 14.107776
A6: 3 | B6: Northern | C6: 37.816645 | D6: 4.999018 | E6: 22.865659
A7: 4 | B7: North West | C7: 43.804081 | D7: 5.881695 | E7: 28.853095
A8: 5 | B8: Yorkshire | C8: 44.071351 | D8: 5.784955 | E8: 29.120365
A9: 6 | B9: N Wales & Mersey | C9: 45.509619 | D9: 5.928558 | E9: 30.558634
A10: 7 | B10: East Midlands | C10: 47.499335 | D10: 6.3448 | E10: 32.54835
A11: 8 | B11: Midlands | C11: 48.794504 | D11: 6.732159 | E11: 33.843518
A12: 9 | B12: Eastern | C12: 49.426516 | D12: 7.157381 | E12: 34.475531
A13: 10 | B13: South Wales | C13: 45.802151 | D13: 5.552425 | E13: 30.851165
A14: 11 | B14: South East | C14: 52.108295 | D14: 7.712884 | E14: 37.15731
A15: 12 | B15: London | C15: 54.90461 | D15: 6.105943 | E15: 39.953624
A16: 13 | B16: Southern | C16: 53.417644 | D16: 7.317192 | E16: 38.466659
A17: 14 | B17: South Western | C17: 51.865303 | D17: 7.559768 | E17: 36.914318
A19: Tariffs include small gen tariff of: | C19: 0.5931455014 | D19: 0.08014670809
A20: Residual charge for gross demand: | C20: 46.93783997

Sheet T3 & Fig 1
A1: Table 3 - Gross HH Demand Tariffs | E1: Return to Index | G1: Figure 1 - Gross HH Demand Tariffs
A3: Zone | B3: Zone Name | C3: 2018/19 October (£/kW) | D3: 2018/19 Draft (£/kW) | E3: Change (£/kW) | F3: Change in Residual (£/kW)
A4: 1 | B4: Northern Scotland | C4: 18.3512669 | D4: 26.298678 | E4: 7.947411097 | F4: 0.03754596761
A5: 2 | B5: Southern Scotland | C5: 25.1316499 | D5: 29.058761 | E5: 3.927111103 | F5: 0.03754596761
A6: 3 | B6: Northern | C6: 36.92453958 | D6: 37.816645 | E6: 0.8921054187 | F6: 0.03754596761
A7: 4 | B7: North West | C7: 43.86648852 | D7: 43.804081 | E7: -0.0624075161 | F7: 0.03754596761
A8: 5 | B8: Yorkshire | C8: 43.83198426 | D8: 44.071351 | E8: 0.2393667447 | F8: 0.03754596761
A9: 6 | B9: N Wales & Mersey | C9: 45.43376043 | D9: 45.509619 | E9: 0.07585856531 | F9: 0.03754596761
A10: 7 | B10: East Midlands | C10: 47.39013501 | D10: 47.499335 | E10: 0.1091999853 | F10: 0.03754596761
A11: 8 | B11: Midlands | C11: 48.84850069 | D11: 48.794504 | E11: -0.05399669339 | F11: 0.03754596761
A12: 9 | B12: Eastern | C12: 49.36728482 | D12: 49.426516 | E12: 0.05923117938 | F12: 0.03754596761
A13: 10 | B13: South Wales | C13: 46.78064538 | D13: 45.802151 | E13: -0.9784943755 | F13: 0.03754596761
A14: 11 | B14: South East | C14: 52.51561327 | D14: 52.108295 | E14: -0.4073182718 | F14: 0.03754596761
A15: 12 | B15: London | C15: 54.83836255 | D15: 54.90461 | E15: 0.06624744768 | F15: 0.03754596761
A16: 13 | B16: Southern | C16: 53.79869182 | D16: 53.417644 | E16: -0.3810478169 | F16: 0.03754596761
A17: 14 | B17: South Western | C17: 53.85906187 | D17: 51.865303 | E17: -1.993758865 | F17: 0.03754596761

Sheet T4 & Fig 2
A1: Table 4 - Embedded Export Tariff | E1: Return to Index | H1: Figure 2 - Embedded Export Tariff
A4: Zone | B4: Zone Name | C4: 2018/19 October (£/kW) | D4: 2018/19 Draft (£/kW) | E4: Change (£/kW)
A5: 1 | B5: Northern Scotland | C5: 3.435933673 | D5: 11.347693 | E5: 7.911759327
A6: 2 | B6: Southern Scotland | C6: 10.21631667 | D6: 14.107776 | E6: 3.891459333
A7: 3 | B7: Northern | C7: 22.00920635 | D7: 22.865659 | E7: 0.8564526493
A8: 4 | B8: North West | C8: 28.95115529 | D8: 28.853095 | E8: -0.09806028557
A9: 5 | B9: Yorkshire | C9: 28.91665102 | D9: 29.120365 | E9: 0.2037139752
A10: 6 | B10: N Wales & Mersey | C10: 30.5184272 | D10: 30.558634 | E10: 0.04020679584
A11: 7 | B11: East Midlands | C11: 32.47480178 | D11: 32.54835 | E11: 0.07354821586
A12: 8 | B12: Midlands | C12: 33.93316746 | D12: 33.843518 | E12: -0.08964946286
A13: 9 | B13: Eastern | C13: 34.45195159 | D13: 34.475531 | E13: 0.02357940991
A14: 10 | B14: South Wales | C14: 31.86531214 | D14: 30.851165 | E14: -1.014147145
A15: 11 | B15: South East | C15: 37.60028004 | D15: 37.15731 | E15: -0.4429700413
A16: 12 | B16: London | C16: 39.92302932 | D16: 39.953624 | E16: 0.03059467821
A17: 13 | B17: Southern | C17: 38.88335859 | D17: 38.466659 | E17: -0.4166995863
A18: 14 | B18: South Western | C18: 38.94372863 | D18: 36.914318 | E18: -2.029410635

Sheet T5 & Fig 3
A1: Table 5 - NHH Demand Tariff Changes | E1: Return to Index | G1: Figure 3 - NHH Demand Tariff Changes
A3: Zone | B3: Zone Name | C3: 2018/19 October Forecast (p/kWh) | D3: 2018/19 Draft Forecast (p/kWh) | E3: Change (p/kWh)
A4: 1 | B4: Northern Scotland | C4: 2.448517058 | D4: 3.508445 | E4: 1.059927942
A5: 2 | B5: Southern Scotland | C5: 3.387468507 | D5: 3.916767 | E5: 0.5292984929
A6: 3 | B6: Northern | C6: 4.881136887 | D6: 4.999018 | E6: 0.1178811128
A7: 4 | B7: North West | C7: 5.890075768 | D7: 5.881695 | E7: -0.008380767805
A8: 5 | B8: Yorkshire | C8: 5.753554516 | D8: 5.784955 | E8: 0.03140048372
A9: 6 | B9: N Wales & Mersey | C9: 5.918689978 | D9: 5.928558 | E9: 0.009868021735
A10: 7 | B10: East Midlands | C10: 6.33021844 | D10: 6.3448 | E10: 0.01458156001
A11: 8 | B11: Midlands | C11: 6.739604896 | D11: 6.732159 | E11: -0.00744589552
A12: 9 | B12: Eastern | C12: 7.148778269 | D12: 7.157381 | E12: 0.008602731449
A13: 10 | B13: South Wales | C13: 5.670892824 | D13: 5.552425 | E13: -0.1184678243
A14: 11 | B14: South East | C14: 7.773209778 | D14: 7.712884 | E14: -0.06032577812
A15: 12 | B15: London | C15: 6.098639171 | D15: 6.105943 | E15: 0.007303828776
A16: 13 | B16: Southern | C16: 7.369392547 | D16: 7.317192 | E16: -0.05220054665
A17: 14 | B17: South Western | C17: 7.850598663 | D17: 7.559768 | E17: -0.2908306631

Sheet T6
A1: Table 6 - Changes to Average Tariffs | F1: Return to Index
A3: Generation Tariffs | B3: 2018/19 February | C3: 2018/19 June | D3: 2018/19 October | E3: 2018/19 Draft | F3: Change since last forecast
A4: Residual | B4: -3.203600603 | C4: -3.282082833 | D4: -2.337478141 | E4: -2.517938223 | F4: =E4-D4 -> -0.1804600824
A5: Average Generation Tariff | B5: 6.386695769 | C5: 6.173472488 | D5: 5.736511788 | E5: 5.980623391 | F5: =E5-D5 -> 0.2441116026 | G5: N.B. These generation average tariffs include local tariffs

Sheet T7
A1: Table 7 - Generation Wider Tariffs | I1: Return to Index
G2: Example tariffs for a generator of each technology type:
C3: System Peak | D3: Shared Year Round | E3: Not Shared Year Round | F3: Residual | G3: Conventional Carbon 80% | H3: Conventional Low Carbon 80% | I3: Intermittent 40%
A4: Zone | B4: Zone Name | C4: Tariff (£/kW) | D4: Tariff (£/kW) | E4: Tariff (£/kW) | F4: Tariff (£/kW) | G4: Tariff (£/kW) | H4: Tariff (£/kW) | I4: Tariff (£/kW)
A5: 1 | B5: North Scotland | C5: -1.25228 | D5: 7.269753 | E5: 24.319562 | F5: -2.517938 | G5: 21.501234 | H5: 26.3651464 | I5: 24.7095252
A6: 2 | B6: East Aberdeenshire | C6: -1.577541 | D6: 7.269753 | E6: 15.555383 | F6: -2.517938 | G6: 14.1646298 | H6: 17.2757064 | I6: 15.9453462
A7: 3 | B7: Western Highlands | C7: -1.13341 | D7: 6.942392 | E7: 23.718412 | F7: -2.517938 | G7: 20.8772952 | H7: 25.6209776 | I7: 23.9774308
A8: 4 | B8: Skye and Lochalsh | C8: -7.063556 | D8: 6.942392 | E8: 23.613374 | F8: -2.517938 | G8: 14.8631188 | H8: 19.5857936 | I8: 23.8723928
A9: 5 | B9: Eastern Grampian and Tayside | C9: 0.225763 | D9: 6.034415 | E9: 21.214727 | F9: -2.517938 | G9: 19.5071386 | H9: 23.750084 | I9: 21.110555
A10: 6 | B10: Central Grampian | C10: -0.538689 | D10: 5.621005 | E10: 19.694027 | F10: -2.517938 | G10: 17.1953986 | H10: 21.134204 | I10: 19.424491
A11: 7 | B11: Argyll | C11: -4.280925 | D11: 4.954749 | E11: 19.349354 | F11: -2.517938 | G11: 12.6444194 | H11: 16.5142902 | I11: 18.8133156
A12: 8 | B12: The Trossachs | C12: 0.121983 | D12: 4.954749 | E12: 17.172736 | F12: -2.517938 | G12: 15.306033 | H12: 18.7405802 | I12: 16.6366976
A13: 9 | B13: Stirlingshire and Fife | C13: -0.695866 | D13: 3.800182 | E13: 15.552784 | F13: -2.517938 | G13: 12.2685688 | H13: 15.3791256 | I13: 14.5549188
A14: 10 | B14: South West Scotlands | C14: 2.759902 | D14: 5.341869 | E14: 17.306508 | F14: -2.517938 | G14: 18.3606656 | H14: 21.8219672 | I14: 16.9253176
A15: 11 | B15: Lothian and Borders | C15: 2.921055 | D15: 5.341869 | E15: 11.319983 | F15: -2.517938 | G15: 13.7325986 | H15: 15.9965952 | I15: 10.9387926
A16: 12 | B16: Solway and Cheviot | C16: 1.847489 | D16: 3.305733 | E16: 9.393832 | F16: -2.517938 | G16: 9.489203 | H16: 11.3679694 | I16: 8.1981872
A17: 13 | B17: North East England | C17: 3.43463 | D17: 2.172482 | E17: 4.737309 | F17: -2.517938 | G17: 6.4445248 | H17: 7.3919866 | I17: 3.0883638
A18: 14 | B18: North Lancashire and The Lakes | C18: 1.753292 | D18: 2.172482 | E18: 3.629866 | F18: -2.517938 | G18: 3.8772324 | H18: 4.6032056 | I18: 1.9809208
A19: 15 | B19: South Lancashire, Yorkshire and Humber | C19: 4.369515 | D19: 0.921466 | E19: 0.108888 | F19: -2.517938 | G19: 2.6758602 | H19: 2.6976378 | I19: -2.0404636
A20: 16 | B20: North Midlands and North Wales | C20: 3.793023 | D20: -0.903282 | E20: 0 | F20: -2.517938 | G20: 0.5524594 | H20: 0.5524594 | I20: -2.8792508
A21: 17 | B21: South Lincolnshire and North Norfolk | C21: 2.205308 | D21: -0.379467 | E21: 0 | F21: -2.517938 | G21: -0.6162036 | H21: -0.6162036 | I21: -2.6697248
A22: 18 | B22: Mid Wales and The Midlands | C22: 1.283397 | D22: -0.085223 | E22: 0 | F22: -2.517938 | G22: -1.3027194 | H22: -1.3027194 | I22: -2.5520272
A23: 19 | B23: Anglesey and Snowdon | C23: 4.578304 | D23: -0.979403 | E23: 0 | F23: -2.517938 | G23: 1.2768436 | H23: 1.2768436 | I23: -2.9096992
A24: 20 | B24: Pembrokeshire | C24: 9.101738 | D24: -4.440745 | E24: 0 | F24: -2.517938 | G24: 3.031204 | H24: 3.031204 | I24: -4.294236
A25: 21 | B25: South Wales & Gloucester | C25: 6.18917 | D25: -4.412656 | E25: 0 | F25: -2.517938 | G25: 0.1411072 | H25: 0.1411072 | I25: -4.2830004
A26: 22 | B26: Cotswold | C26: 3.139566 | D26: 2.197803 | E26: -6.586059 | F26: -2.517938 | G26: -2.8889768 | H26: -4.2061886 | I26: -8.2248758
A27: 23 | B27: Central London | C27: -5.39735 | D27: 2.197803 | E27: -6.369213 | F27: -2.517938 | G27: -11.252416 | H27: -12.5262586 | I27: -8.0080298
A28: 24 | B28: Essex and Kent | C28: -3.77355 | D28: 2.197803 | E28: 0 | F28: -2.517938 | G28: -4.5332456 | H28: -4.5332456 | I28: -1.6388168
A29: 25 | B29: Oxfordshire, Surrey and Sussex | C29: -1.273923 | D29: -2.85602 | E29: 0 | F29: -2.517938 | G29: -6.076677 | H29: -6.076677 | I29: -3.660346
A30: 26 | B30: Somerset and Wessex | C30: -1.323475 | D30: -4.259387 | E30: 0 | F30: -2.517938 | G30: -7.2489226 | H30: -7.2489226 | I30: -4.2216928
A31: 27 | B31: West Devon and Cornwall | C31: 0.165552 | D31: -5.656259 | E31: 0 | F31: -2.517938 | G31: -6.8773932 | H31: -6.8773932 | I31: -4.7804416
C33: Small Generation Discount (£/kW) | F33: 11.104975

Sheet T8 & Fig 4
A1: Table 8 - Generation Tariff Changes | L1: Return to Index | N1: Figure 4 - Variation in Generation Zonal Tariffs
A4: Generation Wider Tariffs (£/kW)
C5: Conventional Carbon 80% | F5: Conventional Low Carbon 80% | I5: Intermittent 40% | L5: Change in Residual (£/kW)
A6: Zone | B6: Zone Name | C6: 2018/19 October tariffs (£/kW) | D6: 2018/19 Draft tariffs (£/kW) | E6: Change (£/kW) | F6: 2018/19 October tariffs (£/kW) | G6: 2018/19 Draft tariffs (£/kW) | H6: Change (£/kW) | I6: 2018/19 October tariffs (£/kW) | J6: 2018/19 Draft tariffs (£/kW) | K6: Change (£/kW)
A7: 1 | B7: North Scotland | C7: 27.97722877 | D7: 21.501234 | E7: =D7-C7 -> -6.475994774 | F7: 31.05280492 | G7: 26.3651464 | H7: =G7-F7 -> -4.687658518 | I7: 20.92583675 | J7: 24.7095252 | K7: =J7-I7 -> 3.783688448 | L7: -0.1804602235
A8: 2 | B8: East Aberdeenshire | C8: 22.68730622 | D8: 14.1646298 | E8: -8.522676423 | F8: 25.76288237 | G8: 17.2757064 | H8: =G8-F8 -> -8.487175968 | I8: 17.15482987 | J8: 15.9453462 | K8: -1.209483666 | L8: =+L7 -> -0.1804602235
A9: 3 | B9: Western Highlands | C9: 26.61324233 | D9: 20.8772952 | E9: -5.735947133 | F9: 29.68881848 | G9: 25.6209776 | H9: -4.067840878 | I9: 20.5051204 | J9: 23.9774308 | K9: 3.4723104 | L9: =+L8 -> -0.1804602235
A10: 4 | B10: Skye and Lochalsh | C10: 31.28361433 | D10: 14.8631188 | E10: -16.42049553 | F10: 35.52298235 | G10: 19.5857936 | H10: -15.93718875 | I10: 26.32407977 | J10: 23.8723928 | K10: -2.451686969 | L10: -0.1804602235
A11: 5 | B11: Eastern Grampian and Tayside | C11: 24.98377712 | D11: 19.5071386 | E11: -5.476638516 | F11: 27.97475625 | G11: 23.750084 | H11: -4.224672245 | I11: 18.9294601 | J11: 21.110555 | K11: 2.181094903 | L11: -0.1804602235
A12: 6 | B12: Central Grampian | C12: 24.79890432 | D12: 17.1953986 | E12: -7.603505724 | F12: 27.73216756 | G12: 21.134204 | H12: -6.597963557 | I12: 18.29473026 | J12: 19.424491 | K12: 1.129760741 | L12: -0.1804602235
A13: 7 | B13: Argyll | C13: 29.66272216 | D13: 12.6444194 | E13: -17.01830276 | F13: 34.52901344 | G13: 16.5142902 | H13: -18.01472324 | I13: 26.69181722 | J13: 18.8133156 | K13: -7.87850162 | L13: -0.1804602235
A14: 8 | B14: The Trossachs | C14: 21.3765176 | D14: 15.306033 | E14: -6.070484599 | F14: 24.08474849 | G14: 18.7405802 | H14: -5.344168294 | I14: 15.90151526 | J14: 16.6366976 | K14: 0.7351823393 | L14: -0.1804602235
A15: 9 | B15: Stirlingshire and Fife | C15: 17.09257983 | D15: 12.2685688 | E15: -4.824011032 | F15: 19.66998319 | G15: 15.3791256 | H15: -4.290857591 | I15: 14.07439259 | J15: 14.5549188 | K15: 0.4805262126 | L15: -0.1804602235
A16: 10 | B16: South West Scotlands | C16: 18.06864195 | D16: 18.3606656 | E16: 0.2920236475 | F16: 20.67101973 | G16: 21.8219672 | H16: 1.150947474 | I16: 14.47593688 | J16: 16.9253176 | K16: 2.449380724 | L16: -0.1804602235
A17: 11 | B17: Lothian and Borders | C17: 14.67810388 | D17: 13.7325986 | E17: -0.945505281 | F17: 16.16649503 | G17: 15.9965952 | H17: -0.1698998278 | I17: 8.906003745 | J17: 10.9387926 | K17: 2.032788855 | L17: -0.1804602235
A18: 12 | B18: Solway and Cheviot | C18: 9.883476057 | D18: 9.489203 | E18: -0.3942730572 | F18: 11.36744226 | G18: 11.3679694 | H18: 0.0005271449906 | I18: 7.288536166 | J18: 8.1981872 | K18: 0.9096510342 | L18: -0.1804602235
A19: 13 | B19: North East England | C19: 7.157978273 | D19: 6.4445248 | E19: -0.7134534732 | F19: 7.963245393 | G19: 7.3919866 | H19: -0.5712587934 | I19: 2.998248674 | J19: 3.0883638 | K19: 0.0901151262 | L19: -0.1804602235
A20: 14 | B20: North Lancashire and The Lakes | C20: 3.794676667 | D20: 3.8772324 | E20: 0.08255573275 | F20: 4.308840247 | G20: 4.6032056 | H20: 0.2943653532 | I20: 1.542730971 | J20: 1.9809208 | K20: 0.4381898292 | L20: -0.1804602235
A21: 15 | B21: South Lancashire, Yorkshire and Humber | C21: 2.897856664 | D21: 2.6758602 | E21: -0.2219964637 | F21: 2.897856664 | G21: 2.6976378 | H21: -0.2002188637 | I21: -1.847713258 | J21: -2.0404636 | K21: -0.1927503416 | L21: -0.1804602235
A22: 16 | B22: North Midlands and North Wales | C22: 0.8055513993 | D22: 0.5524594 | E22: -0.2530919993 | F22: 0.8055513993 | G22: 0.5524594 | H22: -0.2530919993 | I22: -2.437749012 | J22: -2.8792508 | K22: -0.4415017885 | L22: -0.1804602235
A23: 17 | B23: South Lincolnshire and North Norfolk | C23: -0.3976617041 | D23: -0.6162036 | E23: -0.2185418959 | F23: -0.3976617041 | G23: -0.6162036 | H23: -0.2185418959 | I23: -2.412598407 | J23: -2.6697248 | K23: -0.2571263932 | L23: -0.1804602235
A24: 18 | B24: Mid Wales and The Midlands | C24: -1.03632382 | D24: -1.3027194 | E24: -0.2663955801 | F24: -1.03632382 | G24: -1.3027194 | H24: -0.2663955801 | I24: -2.293507908 | J24: -2.5520272 | K24: -0.2585192924 | L24: -0.1804602235
A25: 19 | B25: Anglesey and Snowdon | C25: 1.387578476 | D25: 1.2768436 | E25: -0.1107348757 | F25: 1.387578476 | G25: 1.2768436 | H25: -0.1107348757 | I25: -2.266375617 | J25: -2.9096992 | K25: -0.6433235834 | L25: -0.1804602235
A26: 20 | B26: Pembrokeshire | C26: 2.297688986 | D26: 3.031204 | E26: 0.7335150136 | F26: 2.297688986 | G26: 3.031204 | H26: 0.7335150136 | I26: -4.17061985 | J26: -4.294236 | K26: -0.1236161496 | L26: -0.1804602235
A27: 21 | B27: South Wales & Gloucester | C27: -0.7829061979 | D27: 0.1411072 | E27: 0.9240133979 | F27: -0.7829061979 | G27: 0.1411072 | H27: 0.9240133979 | I27: -4.204557413 | J27: -4.2830004 | K27: -0.07844298742 | L27: -0.1804602235
A28: 22 | B28: Cotswold | C28: -3.961612352 | D28: -2.8889768 | E28: 1.072635552 | F28: -5.37516228 | G28: -4.2061886 | H28: 1.16897368 | I28: -8.472408478 | J28: -8.2248758 | K28: 0.2475326783 | L28: -0.1804602235
A29: 23 | B29: Central London | C29: -11.05595583 | D29: -11.252416 | E29: -0.196460174 | F29: -12.30829875 | G29: -12.5262586 | H29: -0.2179598541 | I29: -7.666373434 | J29: -8.0080298 | K29: -0.3416563661 | L29: -0.1804602235
A30: 24 | B30: Essex and Kent | C30: -4.426388805 | D30: -4.5332456 | E30: -0.1068567952 | F30: -4.426388805 | G30: -4.5332456 | H30: -0.1068567952 | I30: -1.404658835 | J30: -1.6388168 | K30: =J30-I30 -> -0.2341579655 | L30: -0.1804602235
A31: 25 | B31: Oxfordshire, Surrey and Sussex | C31: -5.767335385 | D31: -6.076677 | E31: -0.3093416153 | F31: -5.767335385 | G31: -6.076677 | H31: -0.3093416153 | I31: -3.348211634 | J31: -3.660346 | K31: -0.3121343663 | L31: -0.1804602235
A32: 26 | B32: Somerset and Wessex | C32: -8.152594312 | D32: -7.2489226 | E32: 0.9036717118 | F32: -8.152594312 | G32: -7.2489226 | H32: 0.9036717118 | I32: -4.166258541 | J32: -4.2216928 | K32: -0.05543425891 | L32: -0.1804602235
A33: 27 | B33: West Devon and Cornwall | C33: -9.384418902 | D33: -6.8773932 | E33: 2.507025702 | F33: -9.384418902 | G33: -6.8773932 | H33: 2.507025702 | I33: -5.078825698 | J33: -4.7804416 | K33: 0.298384098 | L33: -0.1804602235

Sheet T9
A1: Table 9 - Local Substation Tariffs | E1: Return to Index
A3: Substation Rating | B3: Connection Type | C3: Local Substation Tariff (£/kW)
C4: 132kV | D4: 275kV | E4: 400kV
A5: <1320 MW | B5: No redundancy | C5: 0.191582 | D5: 0.109597 | E5: 0.078967
A6: <1320 MW | B6: Redundancy | C6: 0.422039 | D6: 0.261118 | E6: 0.189906
A7: >=1320 MW | B7: No redundancy | C7: 0 | D7: 0.343635 | E7: 0.248518
A8: >=1320 MW | B8: Redundancy | C8: 0 | D8: 0.564161 | E8: 0.411791

Sheet T10
A1: Table 10 - Local Circuit Tariffs | H1: Return to Index
A3: Substation Name | B3: (£/kW) | C3: Substation Name | D3: (£/kW) | E3: Substation Name | F3: (£/kW) | G3: Substation Name | H3: (£/kW)
A4: Achruach | B4: 4.096252989 | C4: Dinorwig | D4: 2.28943186 | E4: Langage | F4: 0.6276203769 | G4: Dorenell | H4: 2.002551889
A5: Aigas | B5: 0.6240823152 | C5: Dunlaw Extension | D5: 1.430018562 | E5: Lochay | F5: 0.3491877445 | G5: Millennium South | H5: 0.89856718
A6: An Suidhe | B6: 2.907311919 | C6: Dunhill | D6: 1.366741665 | E6: Luichart | F6: 0.5472434292 | G6: Aberdeen Bay | H6: 2.48796268
A7: Arecleoch | B7: 1.981849538 | C7: Dumnaglass | D7: 1.771588771 | E7: Mark Hill | F7: 0.8354791164 | G7: Killingholme | H7: 0.6766684649
A8: Baglan Bay | B8: 0.7259261864 | C8: Edinbane | D8: 6.530545041 | E8: Marchwood | F8: 0.3642580994 | G8: Middleton | H8: 0.104624448
A9: Beinneun Wind Farm | B9: 1.433206481 | C9: Ewe Hill | D9: 1.311273278 | E9: Millennium Wind | F9: 1.742732904
A10: Bhlaraidh Wind Farm | B10: 0.6279045845 | C10: Fallago | D10: 0.5724334659 | E10: Moffat | F10: 0.1600914526
A11: Black Hill | B11: 0.8232713323 | C11: Farr | D11: 3.402170278 | E11: Mossford | F11: 0.4276742224
A12: BlackCraig Wind Farm | B12: 6.006840351 | C12: Fernoch | D12: 4.197281293 | E12: Nant | F12: -1.172240611
A13: Black Law | B13: 1.66737148 | C13: Ffestiniogg | D13: 0.2414149876 | E13: Necton | F13: -0.3515364704
A14: BlackLaw Extension | B14: 3.53587705 | C14: Finlarig | D14: 0.3055392765 | E14: Rhigos | F14: 0.09711054549
A15: Bodelwyddan | B15: 0.1097913831 | C15: Foyers | D15: 0.7185120401 | E15: Rocksavage | F15: 0.01689341621
A16: Carrington | B16: -0.03226442257 | C16: Galawhistle | D16: 1.411300468 | E16: Saltend | F16: 0.3253668753
A17: Clyde (North) | B17: 0.1046458691 | C17: Glendoe | D17: 1.755201013 | E17: South Humber Bank | F17: 0.9026311206
A18: Clyde (South) | B18: 0.1210178841 | C18: Glenglass | D18: 9.266283914 | E18: Spalding | F18: 0.2679216248
A19: Corriegarth | B19: 3.008295366 | C19: Gordonbush | D19: 0.5205693938 | E19: Strathbrora | F19: 0.3735042822
A20: Corriemoillie | B20: 1.587572753 | C20: Griffin Wind | D20: 4.076406655 | E20: Stronelairg | F20: 1.396651603
A21: Coryton | B21: 0.04950205772 | C21: Hadyard Hill | D21: 2.641167385 | E21: Strathy Wind | F21: 2.013532056
A22: Cruachan | B22: 1.805089074 | C22: Harestanes | D22: 2.390528171 | E22: Wester Dod | F22: 0.8142835543
A23: Crystal Rig | B23: 0.4895873139 | C23: Hartlepool | D23: 0.5732874611 | E23: Whitelee | F23: 0.1012701959
A24: Culligran | B24: 1.653832774 | C24: Hedon | D24: 0.1726652849 | E24: Whitelee Extension | F24: 0.2815311447
A25: Deanie | B25: 2.717010986 | C25: Invergarry | D25: 1.353892745 | E25: Gills Bay | F25: 2.403062267
A26: Dersalloch | B26: 2.298524374 | C26: Kilgallioch | D26: 1.004262776 | E26: Kype Muir | F26: 1.415342586
A27: Didcot | B27: 0.4961190105 | C27: Kilmorack | D27: 0.1884507041 | E27: Middle Muir | F27: 1.891433616

Sheet T11
A1: Table 11 - CMP203: Circuits subject to one-off charges | E1: Return to Index
A3: Node 1 | B3: Node 2 | C3: Actual Parameters | D3: Amendment in Transport Model | E3: Generator
A4: Dyce 132kV | B4: Aberdeen Bay 132kV | C4: 9.5km of Cable | D4: 9.5km of OHL | E4: Aberdeen Bay
A5: Crystal Rig 132kV | B5: Wester Dod 132kV | C5: 3.9km of Cable | D5: 3.9km of OHL | E5: Aikengall II
A6: Wishaw 132kV | B6: Blacklaw 132kV | C6: 11.46km of Cable | D6: 11.46km of OHL | E6: Blacklaw
A7: Farigaig 132kV | B7: Corriegarth 132kV | C7: 4km Cable | D7: 4km OHL | E7: Corriegarth
A8: Elvanfoot 275kV | B8: Clyde North 275kV | C8: 6.2km of Cable | D8: 6.2km of OHL | E8: Clyde North
A9: Elvanfoot 275kV | B9: Clyde South 275kV | C9: 7.17km of Cable | D9: 7.17km of OHL | E9: Clyde South
A10: Farigaig 132kV | B10: Dunmaglass 132kV | C10: 4km Cable | D10: 4km OHL | E10: Dunmaglass
A11: Coalburn 132kV | B11: Galawhistle 132kV | C11: 9.7km cable | D11: 9.7km OHL | E11: Galawhistle II
A12: Moffat 132kV | B12: Harestanes 132kV | C12: 15.33km cable | D12: 15.33km OHL | E12: Harestanes
A13: Coalburn 132kV | B13: Kype Muir 132kV | C13: 17km cable | D13: 17km OHL | E13: Kype Muir
A14: Coalburn 132kV | B14: Middle Muir 132kV | C14: 13km cable | D14: 13km OHL | E14: Middle Muir
A15: Melgarve 132kV | B15: Stronelairg 132kV | C15: 10km cable | D15: 10km OHL | E15: Stronelairg
A16: East Kilbride South 275kV | B16: Whitelee 275kV | C16: 6km of Cable | D16: 6km of OHL | E16: Whitelee
A17: East Kilbride South 275kV | B17: Whitelee Extension 275kV | C17: 16.68km of Cable | D17: 16.68km of OHL | E17: Whitelee Extension

Sheet T12
A1: Table 12 - Offshore Local Tariffs | D1: Return to Index
A3: Offshore Generator | B3: Tariff Component (£/kW)
B4: Substation | C4: Circuit | D4: ETUoS
A5: Barrow | B5: 7.720148 | C5: 40.391807 | D5: 1.002984
A6: Greater Gabbard | B6: 14.47436992 | C6: 33.26067683 | D6: 0
A7: Gunfleet | B7: 16.70807 | C7: 15.339316 | D7: 2.867007
A8: Gwynt Y Mor | B8: 17.62746603 | C8: 17.36523156 | D8: 0
A9: Lincs | B9: 14.4276771 | C9: 56.48765336 | D9: 0
A10: London Array | B10: 9.821298433 | C10: 33.4507957 | D10: 0
A11: Ormonde | B11: 23.866552 | C11: 44.46115 | D11: 0.354318
A12: Robin Rigg East | B12: -0.441499 | C12: 29.245531 | D12: 9.064537
A13: Robin Rigg West | B13: -0.441499 | C13: 29.245531 | D13: 9.064537
A14: Sheringham Shoal | B14: 23.05922514 | C14: 27.04306943 | D14: 0.5878368448
A15: Thanet | B15: 17.56043788 | C15: 32.72137254 | D15: 0.7877189895
A16: Walney 1 | B16: 20.597966 | C16: 41.020795 | D16: 0
A17: Walney 2 | B17: 20.448162 | C17: 41.38219 | D17: 0
A18: West of Duddon Sands | B18: 7.948192398 | C18: 39.21940391 | D18: 0
A19: Westermost Rough | B19: 16.73622202 | C19: 28.31052573 | D19: 0
A20: Humber Gateway | B20: 14.02743313 | C20: 31.6505643 | D20: 0

Sheet T13
A1: Table 13 - Contracted and Modelled TEC | F1: Return to Index
A3: (GW) | B3: 2017/18 Final | C3: 2018/19 Initial Forecast | D3: 2018/19 June Forecast | E3: 2018/19 Oct Forecast | F3: 2018/19 Draft Tariffs
A4: Contracted TEC | B4: 72.19346 | C4: 79.56906 | D4: 78.82561 | E4: 82.4 | F4: 79.028
A5: Modelled Best View TEC | B5: 72.19346 | C5: 72.61966 | D5: 75.45641 | E5: 79.7 | F5: 79.028

Sheet T14
A1: Table 14 - Interconnectors | G1: Return to Index
A3: Interconnector | B3: Site | C3: Interconnected System | D3: Generation Zone | E3: Transport Model (Generation MW) Peak | F3: Transport Model (Generation MW) Year Round | G3: Charging Base (Generation MW)
A4: IFA Interconnector | B4: Sellindge 400kV | C4: France | D4: 24 | E4: 0 | F4: 2000 | G4: 0
A5: ElecLink | B5: Sellindge 400kV | C5: France | D5: 24 | E5: 0 | F5: 1000 | G5: 0
A6: BritNed | B6: Grain 400kV | C6: Netherlands | D6: 24 | E6: 0 | F6: 1200 | G6: 0
A7: East - West | B7: Deesside 400kV | C7: Republic of Ireland | D7: 16 | E7: 0 | F7: 505 | G7: 0
A8: Moyle | B8: Auchencrosh 275kV | C8: Northern Ireland | D8: 10 | E8: 0 | F8: 80 | G8: 0

Sheet T15
A1: Table 15 - Allowed Revenues | G1: Return to Index
A3: £m Nominal Value | B3: 2017/18 TNUoS Revenue | C3: 2018/19 TNUoS Revenue
B4: Jan 2017 Final | C4: Feb 2017 Initial View | D4: June 2017 Update | E4: Oct 2017 Update | F4: Dec 2017 Draft | G4: Jan 2018 Final
A5: National Grid
A6: Price controlled revenue | B6: 1748.757098 | C6: 1727.770785 | D6: 1719.04877 | E6: 1647.130604 | F6: 1652.537796
A7: Less income from connections | B7: 41.8826124 | C7: 41.8826124 | D7: 41.8826124 | E7: 41.8826124 | F7: 41.8826124
A8: Income from TNUoS | B8: =+B6-B7 -> 1706.874486 | C8: 1685.888173 | D8: 1677.166158 | E8: 1605.247991 | F8: 1610.655184 | G8: 0
A10: Scottish Power Transmission
A11: Price controlled revenue | B11: =+B12+B13 -> 333.7400004 | C11: 390.5406563 | D11: 377.7324664 | E11: 360.4666661 | F11: 361.2031977 | G11: =+G12+G13 -> 0
A12: Less income from connections | B12: 12.7748 | C12: 26.77954198 | D12: 13.97135212 | E12: 14.2 | F12: 14.2
A13: Income from TNUoS | B13: 320.9652004 | C13: 363.7611143 | D13: 363.7611143 | E13: 346.2666661 | F13: =F11-F12 -> 347.0031977
A15: SHE Transmission
A16: Price controlled revenue | B16: =+B17+B18 -> 304.7232629 | C16: 366.4865595 | D16: 366.7346057 | E16: 358.5854343 | F16: 366.44487 | G16: =+G17+G18 -> 0
A17: Less income from connections | B17: 3.355 | C17: 3.244007514 | D17: 3.589042111 | E17: 3.463507629 | F17: 3.4
A18: Income from TNUoS | B18: 301.3682629 | C18: 363.242552 | D18: 363.1455636 | E18: 355.1219267 | F18: =F16-F17 -> 363.04487
A20: Offshore | B20: 270.2046075 | C20: 380.1660375 | D20: 373.1840603 | E20: 312.1458731 | F20: 308.9937421
A21: Network Innovation Competition | B21: 32.07110048 | C21: 40.5 | D21: 40.5 | E21: 40.5 | F21: 40.5
A22: Transmission EDR | D22: 2 | E22: 2
A23: Total to Collect from TNUoS | B23: =+B22+B21+B20+B18+B13+B8 -> 2631.483657 | C23: 2833.557877 | D23: 2819.756896 | E23: 2661.282457 | F23: 2670.196993 | G23: 0

Sheet T16
A1: Table 16 - Generation and Demand Revenue Proportions | G1: Return to Index
C3: 2017/18 Final | D3: 2018/19 Initial | E3: 2018/19 June | F3: 2018/19 October | G3: 2018/19 Draft
A4: CAPEC | B4: Limit on generation tariff (€/MWh) | C4: 2.5 | D4: 2.5 | E4: 2.5 | F4: 2.5 | G4: 2.5
A5: y | B5: Error Margin | C5: 0.21 | D5: 0.21 | E5: 0.21 | F5: 0.21 | G5: 0.21
A6: ER | B6: Exchange Rate (€/£) | C6: 1.27 | D6: 1.11 | E6: 1.16 | F6: 1.16 | G6: 1.16
A7: MAR | B7: Total Revenue (£m) | C7: 2631.483657 | D7: 2833.460889 | E7: 2819.756896 | F7: 2661.282457 | G7: 2670.196993
A8: GO | B8: Generation Output (TWh) | C8: 250.95 | D8: 239.9019902 | E8: 252.6242319 | F8: 252.6242319 | G8: 252.6242319
A9: G | B9: % of revenue from generation | C9: 0.1483029882 | D9: 0.150647091 | E9: 0.1525360337 | F9: 0.1616192718 | G9: 0.1610797008
A10: D | B10: % of revenue from demand | C10: 0.8516970118 | D10: 0.849352909 | E10: 0.8474639663 | F10: 0.8383807282 | G10: 0.8389202992
A11: G.R | B11: Revenue recovered from generation (£m) | C11: 390.2568898 | D11: 426.8526403 | E11: 430.1145328 | F11: 430.1145328 | G11: 430.1145328
A12: D.R | B12: Revenue recovered from demand (£m) | C12: 2241.226767 | D12: 2406.608248 | E12: 2389.642363 | F12: 2231.167924 | G12: 2240.082461

Sheet T17
A1: Table 17 - Charging Bases | G1: Return to Index
A3: Charging Bases | B3: 2017/18 | C3: 2018/19 Initial | D3: 2018/19 June | E3: 2018/19 October | F3: 2018/19 Draft | G3: 2018/19 Final
A4: Generation (GW) | B4: 67.57976 | C4: 66.83466 | D4: 69.67141 | E4: 74.9781 | F4: 71.91801
A5: NHH Demand (4pm-7pm TWh) | B5: 25.31320332 | C5: 23.7 | D5: 24.1964169 | E5: 24.17225068 | F5: 24.17225068
A6: Net Charging
A7: Total Average Triad (GW) | B7: 47.68435089 | C7: 46.43 | D7: 46.00402826 | E7: 45.94727154 | F7: 45.94727154
A8: HH Demand Average Triad (GW) | B8: 13.22705491 | C8: 14.25 | D8: 13.18672857 | E8: 13.28536457 | F8: 13.28536457
A9: Gross Charging
A10: Total Average Triad (GW) | B10: Introduced by CMP264/265 | E10: 52.46307414 | F10: 52.46307414
A11: HH Demand Average Triad (GW) | E11: 19.80116716 | F11: 19.80116716
A12: Embedded Generation Export (GW) | E12: 6.515802595 | F12: 6.515802595

Sheet T18
A1: Table 18 - Residual Calculation | G1: Return to Index
B3: Component | C3: 2017/18 | D3: 2018/19 Initial | E3: 2018/19 June | F3: 2018/19 October | G3: 2018/19 Draft
A4: G | B4: Proportion of revenue recovered from generation (%) | C4: 0.1483029882 | D4: 0.150647091 | E4: 0.1525360337 | F4: 0.1616192718 | G4: 0.1610797008
A5: D | B5: Proportion of revenue recovered from demand (%) | C5: 0.8516970118 | D5: 0.849352909 | E5: 0.8474639663 | F5: 0.8383807282 | G5: 0.8389202992
A6: R | B6: Total TNUoS revenue (£m) | C6: 2631.483657 | D6: 2833.460889 | E6: 2819.756896 | F6: 2661.282457 | G6: 2670.196993
A7: Generation Residual
A8: RG | B8: Generator residual tariff (£/kW) | C8: -1.853883063 | D8: =((D6*D4)-D9-D10-D11-D12)/D13 -> -3.203600603 | E8: =((E6*E4)-E9-E10-E11-E12)/E13 -> -3.282082833 | F8: =((F6*F4)-F9-F10-F11-F12)/F13 -> -2.337478141 | G8: =((G6*G4)-G9-G10-G11-G12)/G13 -> -2.517938223
A9: ZG | B9: Revenue recovered from the locational element of generator tariffs (£m) | C9: 274.9672887 | D9: 313.2079284 | E9: 334.0318324 | F9: 322.2026961 | G9: 330.7850001
A10: O | B10: Revenue recovered from offshore local tariffs (£m) | C10: 208.4681631 | D10: 293.901043 | E10: 288.423609 | F10: 244.004753 | G10: 243.625728
A11: LG | B11: Revenue recovered from onshore local substation tariffs (£m) | C11: 17.50045021 | D11: 16.97777347 | E11: 17.78604393 | F11: 20.68981721 | G11: 19.23186229
A12: SG | B12: Revenue recovered from onshore local circuit tariffs (£m) | C12: 14.60596019 | D12: 16.87745251 | E12: 18.54038617 | F12: 18.47766094 | G12: 17.55704874
A13: BG | B13: Generator charging base (GW) | C13: 67.57976 | D13: 66.83466 | E13: 69.67141 | F13: 74.97841 | G13: 71.91801
A14: Net Demand Residual
A15: RD | B15: Demand residual tariff (£/kW) | C15: 47.2607563 | D15: =((D6*D5)-D16)/D17 -> 52.24268712 | E15: =((E6*E5)-E16)/E17 -> 52.20455511 | F15: no longer calculated | G15: no longer calculated
A16: ZD | B16: Revenue recovered from the locational element of demand tariffs (£m) | C16: -12.37171951 | D16: -19.0197144 | E16: -11.97746549
A17: BD | B17: Demand Net charging base (GW) | C17: 47.68435089 | D17: 46.43 | E17: 46.00402826
A18: Gross Demand Residual
A19: RD | B19: Demand residual tariff (£/kW) | C19: Introduced by CMP264/265 to replace 'net residual' | F19: =(F5*F6-F20+F21)/F22 -> 46.90029384 | G19: =(G5*G6-G20+G21)/G22 -> 46.93783997
A20: ZD | B20: Revenue recovered from the locational element of demand tariffs (£m) | F20: -64.15616909 | G20: -47.10296315
A21: EE | B21: Amount to be paid to Embedded Export Tariffs (£m) | F21: 165.2094994 | G21: 175.3179543
A22: BD | B22: Demand Gross charging base (GW) | F22: 52.46307414 | G22: 52.46307414

Sheet T19
A1: Table 19 - Small Generator Discount | C1: Return to Index
A3: Small Generator Discount Calculation
A4: Generator Residual (£/kW) | B4: G | C4: -2.517938223
A5: Demand Residual (£/kW) | B5: D | C5: 46.93783997
A6: Small Generator Discount (£/kW) | B6: T = (G + D)/4 | C6: 11.104975
A7: Forecast Small Generator Volume (kW) | B7: V | C7: 2780910
A8: 2017/18 SGD cost (£) | B8: V x T | C8: =+C7*C6 -> 30881936.03
A9: Prior year reconcilation (£) | B9: R | C9: -236300.3867
A10: Total SGD Cost (£) | B10: C = (V x T) + R | C10: =C8+C9 -> 30645635.64
A11: Total Gross System Triad Demand (kW) | B11: TD | C11: 52463074.14
A12: Total HH Gross Triad Demand (kW) | B12: HHD | C12: 19801167.16
A13: Total NHH Consumption (kWh) | B13: NHHD | C13: 2.417225068e+10
A14: Increase in HH Demand tariff (£/kW) | B14: HHT = C/TD | C14: =+C10/C11 -> 0.584137246
A15: Total Cost to HH Customers (£) | B15: HHC = HHT * HHD | C15: =+C14*C12 -> 11566599.25
A16: Increase in NHH Demand tariff (p/kWh) | B16: NHHT = (C - HHC)/NHHD | C16: =100*(+C10-(+C14*C12))/(C13) -> 0.07892949913
A17: Total Cost to NHH Customers (£) | B17: NHHC = NHHT * NHHD | C17: =(+C16*C13)/100 -> 19079036.39

Sheet T20
A1: Table 20 - Summary of CUSC Modifications affecting 2018/19 TNUoS Tariffs | E1: Return to Index
A3: Mod Number | B3: Description | C3: Status | D3: Status in the Draft Tariffs
A4: Approved Modifications affecting Methodology from 1 April 2018
A5: 264 | B5: Embedded Generation Triad Avoidance Standstill | C5: Approved – WACM 4 was approved by Ofgem | D5: Implemented. See below for information about Judicial Review.
A7: 265 | B7: Gross charging of TNUoS for HH demand where embedded generation is in Capacity Market
A9: 268 | B9: Recognition of sharing by Conventional Carbon plant of Not-Shared Year-Round circuits | C9: Approved - the original proposal was approved | D9: Implemented
A11: 282 | B11: The effect Negative Demand has on Zonal Locational Demand Tariffs | C11: Approved - the original proposal was approved | D11: Implemented
A14: 283 | B14: Consequential Changes to enable the Interconnector Cap and Floor regime | C14: Approved - the original proposal was approved. | D14: Implemented
A17: Modifications which may affect tariffs from 1 April 2018 if approved
A18: 251 | B18: Removing the error margin in the cap on total TNUoS recovered by generation and introducing a new charging element to TNUoS to ensure compliance with European Commission Regulation 838/2010 | C18: Pending Ofgem decision – the final modification report was submitted to Ofgem in October 2016. | D18: Not implemented. See note below
A21: Modifications rejected by Ofgem
A22: 261 | B22: Ensuring the TNUoS paid by Generators in GB in Charging Year 2015/16 is in compliance with the €2.5/MWh annual average limit set in EU Regulation 838/2010 Part B (3) | C22: Rejected | D22: See note below

Sheet T21
A1: Table 21 - Demand Locational Tariffs | G1: Return to Index
B4: October Forecast | D4: Draft | F4: Changes
A5: Zone | B5: Peak (£/kW) | C5: Year Round (£/kW) | D5: Peak (£/kW) | E5: Year Round (£/kW) | F5: Peak (£/kW) | G5: Year Round (£/kW)
A6: 1 | B6: -1.993367832 | C6: -27.1506985 | D6: 3.065285309 | E6: -24.29759241 | F6: =D6-B6 -> 5.05865314 | G6: =E6-C6 -> 2.853106088
A7: 2 | B7: -1.961761874 | C7: -20.40192146 | D7: 0.1346858694 | E7: -18.6069102 | F7: 2.096447743 | G7: 1.795011256
A8: 3 | B8: -3.480363128 | C8: -7.090430521 | D8: -3.097680926 | E8: -6.616659581 | F8: 0.3826822023 | G8: 0.47377094
A9: 4 | B9: -1.173400488 | C9: -2.455444227 | D9: -1.21466933 | E9: -2.512235409 | F9: -0.04126884284 | G9: -0.05679118244
A10: 5 | B10: -2.933824452 | C10: -0.7295245233 | D10: -2.902126984 | E10: -0.5575075693 | F10: 0.03169746785 | G10: 0.172016954
A11: 6 | B11: -1.657942923 | C11: -0.4036298731 | D11: -2.33465262 | E11: 0.3132862881 | F11: -0.6767096974 | G11: 0.7169161612
A12: 7 | B12: -2.083848296 | C12: 1.97865008 | D12: -2.257707107 | E12: 2.226057042 | F12: -0.1738588114 | G12: 0.2474069615
A13: 8 | B13: -1.179326534 | C13: 2.532493997 | D13: -1.800712194 | E13: 3.064230609 | F13: -0.6213856601 | G13: 0.5317366117
A14: 9 | B14: 1.267987435 | C14: 0.6039641553 | D14: 1.14050289 | E14: 0.7550278032 | F14: -0.1274845443 | G14: 0.1510636479
A15: 10 | B15: -5.354272342 | C15: 4.639584486 | D15: -6.151443156 | E15: 4.422608296 | F15: -0.7971708148 | G15: -0.2169761902
A16: 11 | B16: 3.987643361 | C16: 1.03263668 | D16: 3.869827602 | E16: 0.7074822639 | F16: -0.1178157594 | G16: -0.325154416
A17: 12 | B17: 5.385967 | C17: 1.957062322 | D17: 5.11915462 | E17: 2.254469826 | F17: -0.2668123798 | G17: 0.2974075045
A18: 13 | B18: 2.162847102 | C18: 4.140511484 | D18: 1.63785995 | E18: 4.248798646 | F18: -0.5249871528 | G18: 0.1082871621
A19: 14 | B19: 0.2960765234 | C19: 6.067652111 | D19: -1.02805156 | E19: 5.362369211 | F19: -1.324128083 | G19: -0.7052829

Sheet T22
A1: Table 22 - Demand Profiles | L1: Return to Index
C3: 2018/19 October | H3: 2018/19 Draft
A4: Zone | B4: Zone Name | C4: Locational Model Demand (MW) | D4: GROSS Tariff model Peak Demand (MW) | E4: GROSS Tariff Model HH Demand (MW) | F4: Tariff model NHH Demand (TWh) | G4: Tariff model Embedded Export (MW) | H4: Locational Model Demand (MW) | I4: GROSS Tariff model Peak Demand (MW) | J4: GROSS Tariff Model HH Demand (MW) | K4: Tariff model NHH Demand (TWh) | L4: Tariff model Embedded Export (MW)
A5: 1 | B5: Northern Scotland | C5: 227 | D5: 1477.054512 | E5: 489.0588999 | F5: 0.7408035074 | G5: 1000.842162 | H5: 640.4405683 | I5: 1477.054512 | J5: 489.0588999 | K5: 0.7408035074 | L5: 1000.842162
A6: 2 | B6: Southern Scotland | C6: 2820.350123 | D6: 3500.496107 | E6: 1258.785484 | F6: 1.66322602 | G6: 669.5256566 | H6: 2724.130533 | I6: 3500.496107 | J6: 1258.785484 | K6: 1.66322602 | L6: 669.5256566
A7: 3 | B7: Northern | C7: 2508 | D7: 2663.979497 | E7: 1078.298507 | F7: 1.199962226 | G7: 580.7280671 | H7: 2648.876743 | I7: 2663.979497 | J7: 1078.298507 | K7: 1.199962226 | L7: 580.7280671
A8: 4 | B8: North West | C8: 3234 | D8: 4116.856896 | E8: 1522.52028 | F8: 1.932306722 | G8: 343.4135798 | H8: 3168.933488 | I8: 4116.856896 | J8: 1522.52028 | K8: 1.932306722 | L8: 343.4135798
A9: 5 | B9: Yorkshire | C9: 4347 | D9: 3919.728623 | E9: 1609.734554 | F9: 1.76052198 | G9: 635.2966732 | H9: 4387.658401 | I9: 3919.728623 | J9: 1609.734554 | K9: 1.76052198 | L9: 635.2966732
A10: 6 | B10: N Wales & Mersey | C10: 2831 | D10: 2677.573899 | E10: 1085.298335 | F10: 1.222886017 | G10: 537.9364229 | H10: 2393.690698 | I10: 2677.573899 | J10: 1085.298335 | K10: 1.222886017 | L10: 537.9364229
A11: 7 | B11: East Midlands | C11: 5333 | D11: 4763.00739 | E11: 1878.074412 | F11: 2.160075086 | G11: 476.682221 | H11: 5295.75 | I11: 4763.00739 | J11: 1878.074412 | K11: 2.160075086 | L11: 476.682221
A12: 8 | B12: Midlands | C12: 4594 | D12: 4370.505227 | E12: 1616.95794 | F12: 1.995256817 | G12: 211.4544623 | H12: 4409.82 | I12: 4370.505227 | J12: 1616.95794 | K12: 1.995256817 | L12: 211.4544623
A13: 9 | B13: Eastern | C13: 5843 | D13: 6604.513643 | E13: 2132.610743 | F13: 3.085641687 | G13: 624.2080254 | H13: 6097.281418 | I13: 6604.513643 | J13: 2132.610743 | K13: 3.085641687 | L13: 624.2080254
A14: 10 | B14: South Wales | C14: 1969 | D14: 1842.641732 | E14: 838.7434669 | F14: 0.8293664415 | G14: 331.3401138 | H14: 1666.222402 | I14: 1842.641732 | J14: 838.7434669 | K14: 0.8293664415 | L14: 331.3401138
A15: 11 | B15: South East | C15: 3355 | D15: 3999.298669 | E15: 1168.966799 | F15: 1.910257878 | G15: 318.3285428 | H15: 3813.095307 | I15: 3999.298669 | J15: 1168.966799 | K15: 1.910257878 | L15: 318.3285428
A16: 12 | B16: London | C16: 5271 | D16: 4322.863494 | E16: 2285.729746 | F16: 1.836101042 | G16: 149.0715507 | H16: 5379.574916 | I16: 4322.863494 | J16: 2285.729746 | K16: 1.836101042 | L16: 149.0715507
A17: 13 | B17: Southern | C17: 5668 | D17: 5583.914549 | E17: 2072.206377 | F17: 2.563259144 | G17: 436.6576918 | H17: 6219.676552 | I17: 5583.914549 | J17: 2072.206377 | K17: 2.563259144 | L17: 436.6576918
A18: 14 | B18: South Western | C18: 2609 | D18: 2620.639899 | E18: 764.1816184 | F18: 1.272586109 | G18: 200.3174261 | H18: 2244.394532 | I18: 2620.639899 | J18: 764.1816184 | K18: 1.272586109 | L18: 200.3174261
A19: Total | C19: =SUM(C5:C18) -> 50609.35012 | D19: =SUM(D5:D18) -> 52463.07414 | E19: =SUM(E5:E18) -> 19801.16716 | F19: =SUM(F5:F18) -> 24.17225068 | G19: =SUM(G5:G18) -> 6515.802595 | H19: =SUM(H5:H18) -> 51089.54556 | I19: 52463.07414 | J19: 19801.16716 | K19: 24.17225068 | L19: 6515.802595

Sheet T23 & T24
A1: Table 23 & Table 24 - Annual Load Factors and Generic Annual Load Factors | M1: Return to Index
A3: For the latest Annual Load Factors, please see:
A4: http://www2.nationalgrid.com/UK/Industry-information/System-charges/Electricity-transmission/Approval-conditions/Condition-5/

Sheet T25
A1: Table 25 - Generation TEC Changes | D1: Return to Index
A4: Power Station | B4: Node | C4: MW Change | D4: Generation Zone
A5: Barry Power Station | B5: ABTH20 | C5: 93 | D5: 21
A6: Blackcraig Wind Farm | B6: BLCW10 | C6: -4.6 | D6: 10
A7: Killingholme | B7: KILL40 | C7: -600 | D7: 15
A8: Kings Lynn A | B8: WALP40_EME | C8: 99 | D8: 17
A9: Loganhead Windfarm | B9: EWEH1Q | C9: -36 | D9: 12
A10: Peterhead | B10: PEHE20 | C10: -1180 | D10: 2
A11: Pogbie Wind Farm | B11: DUNE10 | C11: 11.8 | D11: 11
A12: Powersite @ Drakelow | B12: DRAK40 | C12: -380 | D12: 18
A13: Rampion Offshore Wind Farm | B13: BOLN40 | C13: 400 | D13: 25
A14: Taylors Lane | B14: WISD20_LPN | C14: 144 | D14: 23
A15: Trafford Power | B15: CARR40 | C15: -1944 | D15: 16
A16: Tralorg Wind Farm | B16: MAHI20 | C16: -20 | D16: 10

Sheet T26
A1: Table 26 - Indicative National Grid Revenue Forecast | I1: Return to Index
D3: 2017-12-18
A4: Description | C4: Licence Term | D4: Yr t-1 | E4: Yr t | F4: Yr t+1 | I4: Notes
A5: Regulatory Year | D5: 2014/15 | E5: 2015/16 | F5: 2016/17 | G5: 2017/18 | H5: 2018/19
A6: Actual RPI | F6: 264.9916667 | I6: April to March average
A7: RPI Actual | C7: RPIAt | F7: 1.228 | I7: Office of National Statistics
A8: Assumed Interest Rate | C8: It | D8: 0.005 | E8: 0.007 | F8: 0.003360215054 | G8: 0.002916666667 | H8: 0.00375 | I8: Bank of England Base Rate
A9: Opening Base Revenue Allowance (2009/10 prices) | B9: A1 | C9: PUt | D9: 1443.829 | E9: 1475.593 | F9: 1571.387 | G9: 1554.942 | H9: 1587.627 | I9: From Licence
A10: Price Control Financial Model Iteration Adjustment | B10: A2 | C10: MODt | D10: -5.5 | E10: -114.4 | F10: -185.4 | G10: -253.3 | H10: -310.2408409 | I10: Forecast
A11: RPI True Up | B11: A3 | C11: TRUt | D11: -0.5272879137 | E11: 4.701911301 | F11: -19.92143138 | G11: -31.39722208 | H11: -6.084594215 | I11: Forecast
A12: Prior Calendar Year RPI Forecast | C12: GRPIFc-1 | D12: 0.031 | E12: 0.025 | F12: 0.01 | G12: 0.018 | H12: 0.035 | I12: HM Treasury Forecast
A13: Current Calendar Year RPI Forecast | C13: GRPIFc | D13: 0.031 | E13: 0.024 | F13: 0.021 | G13: 0.035 | H13: 0.035 | I13: HM Treasury Forecast
A14: Next Calendar Year RPI forecast | C14: GRPIFc+1 | D14: 0.03 | E14: 0.032 | F14: 0.03 | G14: 0.031 | H14: 0.03 | I14: HM Treasury Forecast
A15: RPI Forecast | B15: A4 | C15: RPIFt | D15: 1.2051 | E15: 1.226652821 | F15: 1.233 | G15: 1.271 | H15: 1.314 | I15: Using HM Treasury Forecast
A16: Base Revenue [A=(A1+A2+A3)*A4] | B16: A | C16: BRt | D16: 1732.694843 | E16: 1675.478846 | F16: 1684.358846 | G16: 1614.481113 | H16: =SUM(H9:H11)*H15 -> 1670.490256
A17: Pass-Through Business Rates | B17: B1 | C17: RBt | E17: 1.23533081 | F17: 1.500117926 | G17: 2.689427883 | H17: 1.563034475 | I17: Forecast
A18: Temporary Physical Disconnection | B18: B2 | C18: TPDt | D18: 0.1439533986 | E18: 0.0123376894 | F18: 0.09047836118 | G18: 0 | H18: 0.7084275587 | I18: Forecast
A19: Licence Fee | B19: B3 | C19: LFt | E19: 2.02070276 | F19: 2.69339614 | G19: 3.18769528 | H19: -0.3766395763 | I19: Forecast
A20: Inter TSO Compensation | B20: B4 | C20: ITCt | E20: 3.822243508 | F20: 2.674543756 | G20: 0.4986231556 | H20: 1.344774379 | I20: Forecast
A21: Termination of Bilateral Connection Agreements | B21: B5 | C21: TERMt | D21: 0 | E21: 0 | F21: 0 | G21: 0 | H21: 0 | I21: Forecast
A22: SP Transmission Pass-Through | B22: B6 | C22: TSPt | D22: 312.179148 | E22: 295.664557 | F22: 294.623363 | G22: 320.9652004 | H22: 347.0031977 | I22: Forecast
A23: SHE Transmission Pass-Through | B23: B7 | C23: TSHt | D23: 213.9595177 | E23: 338.2073022 | F23: 322.8363165 | G23: 301.3682629 | H23: 363.04487 | I23: Forecast
A24: Offshore Transmission Pass-Through | B24: B8 | C24: TOFTOt | D24: 218.3803735 | E24: 248.3569992 | F24: 260.7893126 | G24: 270.2046075 | H24: 308.9937421 | I24: Forecast
A25: Embedded Offshore Pass-Through | B25: B9 | C25: OFETt | D25: 0.4373360836 | E25: 0.6494191446 | F25: 0.6544976174 | G25: 0.5150651466 | H25: 0.550654882 | I25: Forecast
A26: Pass-Through Items [B=B1+B2+B3+B4+B5+B6+B7+B8+B9] | B26: B | C26: PTt | D26: 745.1003286 | E26: 889.9688923 | F26: 885.8620259 | G26: 899.4288823 | H26: =SUM(H17:H25) -> 1022.832062
A27: Reliability Incentive Adjustment | B27: C1 | C27: RIt | E27: 2.36156378 | F27: 3.92064433 | G27: 4.038087751 | H27: 4.135796856 | I27: Forecast
A28: Stakeholder Satisfaction Adjustment | B28: C2 | C28: SSOt | E28: 8.693059732 | F28: 10.12348826 | G28: 8.604733768 | H28: 9.263893264 | I28: Forecast
A29: Sulphur Hexafluoride (SF6) Gas Emissions Adjustment | B29: C3 | C29: SFIt | E29: 2.809201974 | F29: 2.661674685 | G29: 2.61332417 | H29: 1.434066097 | I29: Forecast
A30: Awarded Environmental Discretionary Rewards | B30: C4 | C30: EDRt | E30: 0 | F30: 2.0215575 | G30: 0 | H30: 0 | I30: Forecast
A31: Outputs Incentive Revenue [C=C1+C2+C3+C4] | B31: C | C31: OIPt | D31: 0 | E31: 13.86382549 | F31: 18.72736477 | G31: 15.25614569 | H31: =SUM(H27:H30) -> 14.83375622
A32: Network Innovation Allowance | B32: D | C32: NIAt | D32: 10.91597751 | E32: 10.55551673 | F32: 10.61146073 | G32: 10.17123101 | H32: 10.52408861 | I32: Forecast
A33: Network Innovation Competition | B33: E | C33: NICFt | D33: 17.849214 | E33: 18.76065592 | F33: 44.85487989 | G33: 32.07110048 | H33: 40.5 | I33: Forecast
A34: Future Environmental Discretionary Rewards | B34: F | C34: EDRt | F34: 0 | G34: 0 | H34: 2 | I34: Forecast
A35: Transmission Investment for Renewable Generation | B35: G | C35: TIRGt | D35: 15.99732651 | E35: 15.69901683 | F35: 0 | G35: 0 | H35: 0 | I35: Forecast
A36: Scottish Site Specific Adjustment | B36: H | C36: DISt | D36: 1.984914151 | E36: 0.791 | F36: 2.864922714 | G36: 6.057927949 | H36: 6.292 | I36: Forecast
A37: Scottish Terminations Adjustment | B37: I | C37: TSt | D37: -0.28187454 | E37: 0.101547 | F37: 0.07292861 | G37: -1.12155342 | H37: -0.015 | I37: Forecast
A38: Correction Factor | B38: K | C38: -Kt | E38: 56.42377823 | F38: 103.977966 | G38: 97.02142261 | H38: -55.37755686 | I38: Calculated by Licensee
A39: Maximum Revenue [M= A+B+C+D+E+F+G+H+I+K] | B39: M | C39: TOt | D39: 2524.26073 | E39: 2681.643079 | F39: 2751.330395 | G39: 2673.366269 | H39: =H16+H26+H31+SUM(H32:H38) -> 2712.079606
A40: Termination Charges | B40: B5 | D40: 0 | E40: 0 | F40: 0 | G40: 0 | H40: 0
A41: Pre-vesting connection charges | B41: P | D41: 46.95416236 | E41: 44.95520412 | F41: 42.67704326 | G41: 41.8826124 | H41: 41.8826124 | I41: Forecast
A42: TNUoS Collected Revenue [T=M-B5-P] | B42: T | D42: 2477.306567 | E42: 2636.687875 | F42: 2708.653351 | G42: 2631.483657 | H42: =H39-H40-H41 -> 2670.196993
A43: Final Collected Revenue | B43: U | C43: TNRt | I43: Forecast
A44: Forecast percentage change to Maximum Revenue M | E44: 0.0623478976 | F44: 0.02598679751 | G44: -0.02833688223 | H44: 0.01114654609
A45: Forecast percentage change to TNUoS Collected Revenue T | E45: 0.06433652978 | F45: 0.02729389293 | G45: -0.02849005926 | H45: 0.01132395417
A47: Notes:
A48: All monies are nominal 'money of the day' prices unless stated otherwise
A49: Licensee forecasts and budgets are subject to change especially where they are influenced by external stakeholders
A50: Greyed out cells are either calculated or not applicable in the year concerned due to the way the licence formula are constructed
A51: NIC payments to all Transmission Owners are inlcuded in National Grid Maximum Revenue and are included here
A52: 2014/15 - 2017/18 pass through to other networks is based on forecast at time of tariff setting

Sheet T27
A1: Table 27 - Offshore Revenues | G1: Return to Index
A3: Offshore Transmission Revenue Forecast | B3: 2017-12-14
G4: Notes
A5: Regulatory Year | B5: 2014/15 | C5: 2015/16 | D5: 2016/17 | E5: 2017/18 | F5: 2018/19
A6: Barrow | B6: 5.475948387 | C6: 5.605119166 | D6: 5.656283019 | E6: 5.872496367 | F6: 6.249852083 | G6: Current revenues plus indexation
A7: Gunfleet | B7: 6.853152423 | C7: 7.014459018 | D7: 7.080594599 | E7: 7.432422281 | F7: 7.801503815 | G7: Current revenues plus indexation
A8: Walney 1 | B8: 12.49105951 | C8: 12.78636456 | D8: 12.90184157 | E8: 13.13609825 | F8: 13.55096244 | G8: Current revenues plus indexation
A9: Robin Rigg | B9: 7.709472064 | C9: 7.891440662 | D9: 7.993308366 | E9: 8.367306563 | F9: 8.83448512 | G9: Current revenues plus indexation
A10: Walney 2 | B10: 12.92696073 | C10: 13.23221075 | D10: 12.51589741 | E10: 12.29931316 | F10: 16.26605045 | G10: Current revenues plus indexation
A11: Sheringham Shoal | B11: 18.92412411 | C11: 19.49893387 | D11: 19.72766462 | E11: 20.02531234 | F11: 20.65940638 | G11: Current revenues plus indexation
A12: Ormonde | B12: 11.57050189 | C12: 11.84309117 | D12: 11.95215008 | E12: 12.15604428 | F12: 12.96134839 | G12: Current revenues plus indexation
A13: Greater Gabbard | B13: 25.9995199 | C13: 26.61925023 | D13: 26.87143257 | E13: 27.3092326 | F13: 28.49169067 | G13: Current revenues plus indexation
A14: London Array | B14: 37.57295282 | C14: 39.2120985 | D14: 39.49870272 | E14: 39.51888334 | F14: 40.58886203 | G14: Current revenues plus indexation
A15: Thanet | B15: 78.85668167 | C15: 17.51705273 | D15: 15.69984448 | E15: 19.5121928 | F15: 18.53663554 | G15: Current revenues plus indexation
A16: Lincs | C16: 25.56339384 | D16: 26.68704214 | E16: 27.18814554 | F16: 28.16936445 | G16: Current revenues plus indexation
A17: Gwynt y mor | C17: 26.28358513 | D17: 23.6461166 | E17: 29.34287447 | F17: 32.73080929 | G17: Current revenues plus indexation
A18: West of Duddon Sands | C18: 35.2899996 | D18: 21.27389291 | E18: 22.04538798 | F18: 22.25795523 | G18: Current revenues plus indexation
A19: Humber Gateway | D19: 29.28454151 | E19: 9.749899087 | F19: 12.14541511 | G19: Current revenues plus indexation
A20: Westermost Rough | E20: 11.57669261 | F20: 13.19729093 | G20: Current revenues plus indexation
A21: Forecast to asset transfer to OFTO + Interconnector revenue in 2018/19 | F21: 26.5521102 | G21: National Grid Forecast
A22: Forecast to asset transfer to OFTO in 2019/20 | G22: National Grid Forecast
A23: Forecast to asset transfer to OFTO in 2020/21 | G23: National Grid Forecast
A24: Forecast to asset transfer to OFTO in 2021/22 | G24: National Grid Forecast
A25: Offshore Transmission Pass-Through (B7) | B25: =SUM(B6:B24) -> 218.3803735 | C25: =SUM(C6:C24) -> 248.3569992 | D25: =SUM(D6:D24) -> 260.7893126 | E25: =SUM(E6:E24) -> 265.5323017 | F25: =SUM(F6:F24) -> 308.9937421
A28: Notes:
A30: Licensee forecasts and budgets are subject to change especially where they are influenced by external stakeholders
A31: Greyed out cells are either calculated or not applicable in the year concerned due to the way the licence formula are constructed
A32: NIC payments are not included as they do not form part of OFTO Maximum Revenue
